fUST/lending_fUST_20250717
["ID","MTS","AMOUNT","RATE_DAILY","PERIOD"]
[372568799,1752685869598,-460.0,0.00023835,2]
[372568800,1752685869608,-460.0,0.00023835,2]
[372568801,1752685869618,-460.0,0.00023835,2]
[372568802,1752685869629,-613.81,0.00023835,2]
[372568803,1752685869639,-577.21,0.00023835,2]
[372568804,1752685869649,-641.21,0.00023835,2]
[372568805,1752685869658,-1400.36,0.00023835,2]
[372568806,1752685869668,-476.08,0.00023835,2]
[372568807,1752685869678,-563.13,0.00023835,2]
[372568808,1752685869688,-671.66,0.00023835,2]
[372568809,1752685869698,-2382.71,0.00023835,2]
[372568810,1752685869708,-731.92,0.00023835,2]
[372568811,1752685869718,-3088.72,0.00023835,2]
[372568812,1752685869728,-154.299843,0.00023865,10]
[372568813,1752685869738,-960.0,0.00023884,2]
[372568814,1752685869748,-500.0,0.000239,9]
[372568815,1752685869758,-1245.89486227,0.000239,2]
[372568816,1752685869768,-5916.31313928,0.00023969,10]
[372568817,1752685869785,-154.299843,0.00023993,14]
[372568818,1752685869796,-429.1687796,0.00024,2]
[372568819,1752685869807,-429.1687796,0.00024,2]
[372568820,1752685869816,-429.1687796,0.00024,2]
[372568821,1752685869826,-429.1687796,0.00024,2]
[372568822,1752685869836,-429.1687796,0.00024,2]
[372568823,1752685869846,-429.1687796,0.00024,2]
[372568824,1752685869857,-429.1687796,0.00024,2]
[372568825,1752685869867,-656.1293793,0.00024,2]
[372568826,1752685869880,-857.8950538,0.00024,2]
[372568827,1752685869890,-214.40824756,0.00024,10]
[372568828,1752685869900,-500.0,0.00024,7]
[372568829,1752685869910,-500.0,0.00024,7]
[372568830,1752685869919,-500.0,0.00024,7]
[372568831,1752685869932,-500.0,0.00024,7]
[372568832,1752685869942,-164.26806508,0.00024,7]
[372568833,1752685869952,-500.0,0.00024,7]
[372568834,1752685869961,-500.0,0.00024,7]
[372568835,1752685869971,-507.28079603,0.00024,7]
[372568836,1752685869981,-71202.07,0.00024,10]
[372568837,1752685869991,-215.5496034,0.00024,7]
[372568838,1752685870000,-215.5496034,0.00024,10]
[372568839,1752685870010,-4020.09,0.00024,7]
[372568840,1752685870020,-5099.04,0.00024,7]
[372568841,1752685870030,-45179.26,0.00024,2]
[372568842,1752685870040,-151.0,0.00024,7]
[372568843,1752685870049,-50726.35,0.00024,7]
[372568844,1752685870060,-838.99048831,0.00024,7]
[372568845,1752685870069,-838.99048831,0.00024,10]
[372568846,1752685870079,-525.58295679,0.00024,7]
[372568847,1752685870088,-155.0,0.00024,2]
[372568848,1752685870098,-459.6,0.00024014,6]
[372568849,1752685870108,-5888.0,0.0002406,2]
[372568850,1752685870117,-154.299843,0.00024072,8]
[372568851,1752685870131,-151.0,0.000241,7]
[372568852,1752685870140,-1535.37,0.000241,2]
[372568853,1752685870151,-200.0,0.00024109,2]
[372568854,1752685870161,-460.0,0.00024109,2]
[372568855,1752685870171,-460.0,0.00024109,2]
[372568856,1752685870181,-593.36,0.00024109,2]
[372568857,1752685870190,-188.32,0.00024109,2]
[372568858,1752685870200,-460.0,0.00024109,2]
[372568859,1752685870209,-579.17,0.00024109,2]
[372568860,1752685870219,-657.27,0.00024109,2]
[372568861,1752685870229,-203.98,0.00024109,2]
[372568862,1752685870239,-729.43,0.00024109,2]
[372568863,1752685870249,-460.0,0.00024109,2]
[372568864,1752685870262,-1697.15,0.00024109,2]
[372568865,1752685870275,-1666.88,0.00024109,2]
[372568866,1752685870286,-1357.78,0.00024109,2]
[372568867,1752685870296,-586.34,0.00024109,2]
[372568868,1752685870306,-755.09,0.00024109,2]
[372568869,1752685870317,-760.93,0.00024109,2]
[372568870,1752685870327,-421.05,0.00024109,2]
[372568871,1752685870337,-2012.57,0.00024109,2]
[372568872,1752685870347,-587.6,0.00024109,2]
[372568873,1752685870358,-5099.27,0.00024109,2]
[372568874,1752685870367,-1833.17,0.00024109,2]
[372568875,1752685870379,-537.99,0.00024109,2]
[372568876,1752685870392,-593.0,0.00024109,2]
[372568877,1752685870401,-1021.02,0.00024109,2]
[372568878,1752685870411,-1535.14,0.00024109,2]
[372568879,1752685870423,-914.77,0.00024109,2]
[372568880,1752685870432,-408.86,0.00024109,2]
[372568881,1752685870442,-5881.17,0.00024109,2]
[372568882,1752685870452,-1200.41,0.00024109,2]
[372568883,1752685870462,-4675.14,0.00024109,2]
[372568884,1752685870474,-1850.24,0.00024109,2]
[372568885,1752685870485,-922.03,0.00024109,2]
[372568886,1752685870495,-881.48,0.00024109,2]
[372568887,1752685870505,-2753.5,0.00024109,2]
[372568888,1752685870514,-694.7,0.00024109,2]
[372568889,1752685870524,-530.9,0.00024109,2]
[372568890,1752685870534,-460.0,0.00024109,2]
[372568891,1752685870545,-460.0,0.00024109,2]
[372568892,1752685870555,-460.0,0.00024109,2]
[372568893,1752685870567,-613.81,0.00024109,2]
[372568894,1752685870578,-577.21,0.00024109,2]
[372568895,1752685870589,-641.21,0.00024109,2]
[372568896,1752685870600,-1400.36,0.00024109,2]
[372568897,1752685870612,-476.08,0.00024109,2]
[372568898,1752685870623,-563.13,0.00024109,2]
[372568899,1752685870632,-671.66,0.00024109,2]
[372568900,1752685870642,-2382.71,0.00024109,2]
[372568901,1752685870652,-731.92,0.00024109,2]
[372568902,1752685870662,-3088.72,0.00024109,2]
[372568903,1752685870672,-154.299843,0.00024127,2]
[372568904,1752685870682,-154.299843,0.00024127,6]
[372568905,1752685870692,-237.0,0.00024164,7]
[372568906,1752685870701,-5888.0,0.00024185,2]
[372568907,1752685870711,-5916.31313928,0.0002421,10]
[372568908,1752685870722,-223.0315306,0.00024223,2]
[372568909,1752685870731,-500.0,0.00024244,2]
[372568910,1752685870741,-154.299843,0.00024245,7]
[372568911,1752685870751,-160.05160155,0.00024247,2]
[372568912,1752685870760,-159.4224679,0.00024247,2]
[372568913,1752685870769,-575.7179472,0.00024247,2]
[372568914,1752685870779,-500.0,0.00024259,2]
[372568915,1752685870789,-319.2119084,0.00024274,2]
[372568916,1752685870798,-1152.9316666,0.00024274,2]
[372568917,1752685870808,-429.1687796,0.00024305,2]
[372568918,1752685870818,-429.1687796,0.00024305,2]
[372568919,1752685870827,-429.1687796,0.00024305,2]
[372568920,1752685870837,-153.0,0.00024329,2]
[372568921,1752685870846,-153.0,0.00024329,2]
[372568922,1752685870866,-153.0,0.00024329,2]
[372568923,1752685870879,-307.894964,0.00024329,2]
[372568924,1752685870889,-450.0,0.00024332,2]
[372568925,1752685870900,-12179.96559771,0.00024334,7]
[372568926,1752685871091,-320.03440229,0.00024334,7]
[372568927,1752685871102,-3081.34360674,0.00024334,7]
[372568928,1752685871111,-159.4224679,0.00024356,2]
[372568929,1752685871120,-200.0,0.00024383,2]
[372568930,1752685871131,-583.79945779,0.00024383,2]
[372568931,1752685871140,-460.0,0.00024383,2]
[372568932,1752685871149,-593.36,0.00024383,2]
[372568933,1752685871159,-230.11,0.00024383,2]
[372568934,1752685871168,-579.17,0.00024383,2]
[372568935,1752685871177,-657.27,0.00024383,2]
[372568936,1752685871186,-729.43,0.00024383,2]
[372568937,1752685871195,-206.49241451,0.00024383,2]
[372568938,1752685871353,-460.0,0.00019178,2]
[372568939,1752685871362,-460.0,0.00019178,2]
[372568940,1752685871374,-460.0,0.00019178,2]
[372568941,1752685871383,-761.4109629,0.00019452,2]
[372568942,1752685871414,-2804.7290371,0.00019452,2]
[372568943,1752685871428,-232.22927425,0.00019452,2]
[372568944,1752685871444,-225.91072575,0.00019452,2]
[372568945,1752685871454,-3566.14,0.00019726,2]
[372568946,1752685871465,-3566.14,0.0002,2]
[372568947,1752685871474,-2923.71178279,0.00020273,2]
[372568948,1752685871487,-642.42821721,0.00020273,2]
[372568949,1752685871497,-3566.14,0.00020547,2]
[372568950,1752685871507,-3566.14,0.00020821,2]
[372568951,1752685871517,-460.0,0.00021095,2]
[372568952,1752685871528,-500.0,0.00021917,2]
[372568953,1752685871538,-500.0,0.00021917,2]
[372568954,1752685871549,-500.0,0.00021917,2]
[372568955,1752685871562,-500.0,0.00021917,2]
[372568956,1752685871574,-253.50758549,0.00024383,2]
[372568957,1752685871583,-1697.15,0.00024383,2]
[372568958,1752685871592,-1666.88,0.00024383,2]
[372568959,1752685871602,-1357.78,0.00024383,2]
[372568960,1752685871611,-586.34,0.00024383,2]
[372568961,1752685871621,-755.09,0.00024383,2]
[372568962,1752685871631,-760.93,0.00024383,2]
[372568963,1752685871640,-587.6,0.00024383,2]
[372568964,1752685871650,-5099.27,0.00024383,2]
[372568965,1752685871660,-1833.17,0.00024383,2]
[372568966,1752685871671,-537.99,0.00024383,2]
[372568967,1752685871680,-593.0,0.00024383,2]
[372568968,1752685871690,-1021.02,0.00024383,2]
[372568969,1752685871699,-1535.14,0.00024383,2]
[372568970,1752685871709,-914.77,0.00024383,2]
[372568971,1752685871720,-5881.17,0.00024383,2]
[372568972,1752685871730,-1200.41,0.00024383,2]
[372568973,1752685871739,-4675.14,0.00024383,2]
[372568974,1752685871749,-1850.24,0.00024383,2]
[372568975,1752685871759,-922.03,0.00024383,2]
[372568976,1752685871769,-881.48,0.00024383,2]
[372568977,1752685871779,-2753.5,0.00024383,2]
[372568978,1752685871789,-694.7,0.00024383,2]
[372568979,1752685871799,-530.9,0.00024383,2]
[372568980,1752685871809,-460.0,0.00024383,2]
[372568981,1752685871820,-460.0,0.00024383,2]
[372568982,1752685871830,-460.0,0.00024383,2]
[372568983,1752685871841,-613.81,0.00024383,2]
[372568984,1752685871850,-577.21,0.00024383,2]
[372568985,1752685871860,-641.21,0.00024383,2]
[372568986,1752685871870,-1400.36,0.00024383,2]
[372568987,1752685871884,-476.08,0.00024383,2]
[372568988,1752685871894,-563.13,0.00024383,2]
[372568989,1752685871904,-671.66,0.00024383,2]
[372568990,1752685872087,-2382.71,0.00024383,2]
[372568991,1752685872100,-731.92,0.00024383,2]
[372568992,1752685872111,-3088.72,0.00024383,2]
[372568993,1752685872124,-459.6,0.00024389,6]
[372568994,1752685872135,-2416.0,0.00024406,2]
[372568995,1752685872145,-800.0,0.00024412,2]
[372568996,1752685872155,-2416.0,0.00024417,2]
[372568997,1752685872166,-1060.0,0.00024432,2]
[372568998,1752685872175,-5916.31313928,0.00024452,11]
[372568999,1752685872185,-160.05160155,0.00024466,2]
[372569000,1752685872194,-159.4224679,0.00024466,2]
[372569001,1752685872205,-5888.0,0.00024471,2]
[372569002,1752685872214,-153.0,0.00024479,2]
[372569003,1752685872224,-153.0,0.00024479,2]
[372569004,1752685872234,-153.0,0.00024479,2]
[372569005,1752685872243,-153.0,0.00024479,2]
[372569006,1752685872253,-203.9960021,0.00024479,2]
[372569007,1752685872263,-749.47988119,0.000245,3]
[372569008,1752685872273,-151.0,0.000245,7]
[372569009,1752685872282,-437.944462,0.000245,7]
[372569010,1752685872291,-437.944462,0.000245,7]
[372569011,1752685872302,-642.0,0.000245,2]
[372569012,1752685872312,-57.5221813,0.00024548,2]
[372569013,1752685872325,-97.4778187,0.00024548,2]
[372569014,1752685872335,-811.38726264,0.00024572,5]
[372569015,1752685872451,-460.0,0.00019452,2]
[372569016,1752685872461,-460.0,0.00019726,2]
[372569017,1752685872472,-3566.14,0.00021095,2]
[372569018,1752685872481,-838.99048831,0.00021116,2]
[372569019,1752685872491,-3566.14,0.00021369,2]
[372569020,1752685872500,-3566.14,0.00021643,2]
[372569021,1752685872510,-500.0,0.00021917,2]
[372569022,1752685872520,-500.0,0.00021917,2]
[372569023,1752685872529,-500.0,0.00021917,2]
[372569024,1752685872539,-500.0,0.00021917,2]
[372569025,1752685872548,-500.0,0.00021917,2]
[372569026,1752685872558,-500.0,0.00021917,2]
[372569027,1752685872567,-500.0,0.00021917,2]
[372569028,1752685872577,-3566.14,0.00021917,2]
[372569029,1752685872587,-500.0,0.00022191,2]
[372569030,1752685872598,-3566.14,0.00022191,2]
[372569031,1752685872608,-316.04881088,0.00022465,2]
[372569032,1752685872618,-3566.14,0.00022465,2]
[372569033,1752685872631,-188.61273736,0.00024572,5]
[372569034,1752685872641,-190.25001694,0.00024575,2]
[372569035,1752685872651,-193.7731654,0.00024575,2]
[372569036,1752685872661,-179.68057155,0.00024575,2]
[372569037,1752685872670,-151.0,0.00024586,7]
[372569038,1752685872679,-151.0,0.000246,7]
[372569039,1752685872689,-210.739622,0.000246,7]
[372569040,1752685872698,-210.739622,0.000246,7]
[372569041,1752685872708,-159.4224679,0.00024603,2]
[372569042,1752685872718,-2416.0,0.00024616,2]
[372569043,1752685872728,-2416.0,0.0002462,2]
[372569044,1752685872737,-36432.9709876,0.00024642,2]
[372569045,1752685872750,-645.29,0.00024642,2]
[372569046,1752685872762,-38218.91982865,0.00024642,2]
[372569047,1752685872982,-460.0,0.00019178,2]
[372569048,1752685872992,-460.0,0.00019178,2]
[372569049,1752685873002,-460.0,0.00019178,2]
[372569050,1752685873011,-460.0,0.00019178,2]
[372569051,1752685873021,-574.27,0.00019452,2]
[372569052,1752685873030,-460.0,0.00019452,2]
[372569053,1752685873039,-460.0,0.00019726,2]
[372569054,1752685873049,-460.0,0.0002,2]
[372569055,1752685873058,-278.26,0.00020273,2]
[372569056,1752685873068,-2000.0,0.00021162,2]
[372569057,1752685873077,-3566.14,0.00022739,2]
[372569058,1752685873087,-1150.2803425,0.00022835,2]
[372569059,1752685873096,-3566.14,0.00023013,2]
[372569060,1752685873106,-1964.36031601,0.00023287,2]
[372569061,1752685873117,-1601.77968399,0.00023287,2]
[372569062,1752685873129,-844.97801745,0.00023561,2]
[372569063,1752685873141,-2721.16198255,0.00023561,2]
[372569064,1752685873151,-3566.14,0.00023835,2]
[372569065,1752685873160,-3566.14,0.00024109,2]
[372569066,1752685873169,-1350.503628,0.000243,7]
[372569067,1752685873178,-3566.14,0.00024383,2]
[372569068,1752685873188,-11322.05739007,0.00024642,2]
[372569069,1752685873198,-36194.83224234,0.0002465,2]
[372569070,1752685873209,-24140.8337124,0.0002465,2]
[372569071,1752685873240,-45080.39131129,0.0002465,2]
[372569072,1752685873251,-151.0,0.0002465,7]
[372569073,1752685873260,-151.0,0.0002465,7]
[372569074,1752685873271,-151.0,0.0002465,7]
[372569075,1752685873280,-151.0,0.0002465,7]
[372569076,1752685873290,-238.706692,0.0002465,7]
[372569077,1752685873299,-238.706692,0.0002465,7]
[372569078,1752685873309,-238.705138,0.0002465,7]
[372569079,1752685873319,-238.705138,0.0002465,7]
[372569080,1752685873328,-151.0,0.00024657,7]
[372569081,1752685873337,-225.888884,0.00024657,7]
[372569082,1752685873347,-225.888884,0.00024657,7]
[372569083,1752685873358,-200.0,0.00024657,2]
[372569084,1752685873367,-350.27166094,0.00024657,2]
[372569085,1752685873379,-399.55,0.00024657,2]
[372569086,1752685873390,-593.36,0.00024657,2]
[372569087,1752685873400,-579.17,0.00024657,2]
[372569088,1752685873409,-657.27,0.00024657,2]
[372569089,1752685873419,-729.43,0.00024657,2]
[372569090,1752685873428,-460.0,0.00024657,2]
[372569091,1752685873438,-1697.15,0.00024657,2]
[372569092,1752685873448,-1666.88,0.00024657,2]
[372569093,1752685873457,-1357.78,0.00024657,2]
[372569094,1752685873469,-755.09,0.00024657,2]
[372569095,1752685873479,-760.93,0.00024657,2]
[372569096,1752685873489,-587.6,0.00024657,2]
[372569097,1752685873499,-5099.27,0.00024657,2]
[372569098,1752685873509,-1833.17,0.00024657,2]
[372569099,1752685873518,-537.99,0.00024657,2]
[372569100,1752685873528,-593.0,0.00024657,2]
[372569101,1752685873537,-1021.02,0.00024657,2]
[372569102,1752685873547,-1535.14,0.00024657,2]
[372569103,1752685873558,-914.77,0.00024657,2]
[372569104,1752685873567,-5881.17,0.00024657,2]
[372569105,1752685873577,-1200.41,0.00024657,2]
[372569106,1752685873586,-4675.14,0.00024657,2]
[372569107,1752685873595,-1850.24,0.00024657,2]
[372569108,1752685873605,-922.03,0.00024657,2]
[372569109,1752685873614,-881.48,0.00024657,2]
[372569110,1752685873623,-2753.5,0.00024657,2]
[372569111,1752685873635,-694.7,0.00024657,2]
[372569112,1752685873649,-530.9,0.00024657,2]
[372569113,1752685873660,-460.0,0.00024657,2]
[372569114,1752685873670,-460.0,0.00024657,2]
[372569115,1752685873680,-277.95,0.00024657,2]
[372569116,1752685873690,-613.81,0.00024657,2]
[372569117,1752685873699,-577.21,0.00024657,2]
[372569118,1752685873709,-641.21,0.00024657,2]
[372569119,1752685873718,-1400.36,0.00024657,2]
[372569120,1752685873728,-476.08,0.00024657,2]
[372569121,1752685873737,-563.13,0.00024657,2]
[372569122,1752685873746,-2382.71,0.00024657,2]
[372569123,1752685873756,-671.66,0.00024657,2]
[372569124,1752685873765,-731.92,0.00024657,2]
[372569125,1752685873774,-3088.72,0.00024657,2]
[372569126,1752685873785,-3566.14,0.00024657,2]
[372569127,1752685873803,-160.05160155,0.00024658,2]
[372569128,1752685873813,-200.0,0.00024658,15]
[372569129,1752685873822,-285.7056492,0.00024658,2]
[372569130,1752685873832,-500.0,0.0002468,2]
[372569131,1752685873842,-5916.31313928,0.00024693,11]
[372569132,1752685873851,-151.0,0.000247,7]
[372569133,1752685873860,-154.299843,0.000247,11]
[372569134,1752685873870,-463.488078,0.000247,7]
[372569135,1752685873881,-463.488078,0.000247,7]
[372569136,1752685873891,-172.687709,0.00024706,7]
[372569137,1752685873901,-172.687709,0.00024706,7]
[372569138,1752685873910,-2416.0,0.00024706,2]
[372569139,1752685873919,-159.4224679,0.00024712,2]
[372569140,1752685873929,-2416.0,0.00024716,2]
[372569141,1752685873939,-4000.0,0.00024728,4]
[372569142,1752685873949,-154.299843,0.0002473,10]
[372569143,1752685873959,-2416.0,0.00024748,2]
[372569144,1752685873968,-459.6,0.00024763,7]
[372569145,1752685873977,-154.299843,0.00024767,11]
[372569146,1752685873986,-2416.0,0.00024776,2]
[372569147,1752685873995,-160.0,0.00024789,6]
[372569148,1752685874005,-5888.0,0.00024805,2]
[372569149,1752685874014,-159.4224679,0.00024822,2]
[372569150,1752685874023,-154.299843,0.00024834,11]
[372569151,1752685874032,-603.10873398,0.00024852,2]
[372569152,1752685874042,-3894.3297883,0.0002487,2]
[372569153,1752685874051,-1037841.99996174,0.0002487,4]
[372569154,1752685874061,-222.729208,0.0002487,7]
[372569155,1752685874070,-222.729208,0.0002487,7]
[372569156,1752685874079,-151.0,0.0002487,7]
[372569157,1752685874089,-151.0,0.0002487,7]
[372569158,1752685874098,-172.687709,0.0002487,7]
[372569159,1752685874107,-172.687709,0.0002487,7]
[372569160,1752685874117,-151.0,0.0002487,7]
[372569161,1752685874130,-151.0,0.0002487,7]
[372569162,1752685874139,-151.0,0.0002487,7]
[372569163,1752685874149,-225.888884,0.0002487,7]
[372569164,1752685874158,-225.888884,0.0002487,7]
[372569165,1752685874168,-151.0,0.0002487,7]
[372569166,1752685874178,-151.0,0.0002487,7]
[372569167,1752685874188,-238.706692,0.0002487,7]
[372569168,1752685874197,-238.706692,0.0002487,7]
[372569169,1752685874207,-151.0,0.0002487,7]
[372569170,1752685874216,-190.970335,0.0002487,7]
[372569171,1752685874225,-210.739622,0.0002487,7]
[372569172,1752685874234,-210.739622,0.0002487,7]
[372569173,1752685874243,-217.177208,0.0002487,7]
[372569174,1752685874254,-151.0,0.0002487,7]
[372569175,1752685874263,-217.177208,0.0002487,7]
[372569176,1752685874272,-151.0,0.0002487,7]
[372569177,1752685874281,-151.0,0.0002487,7]
[372569178,1752685874291,-437.944462,0.0002487,7]
[372569179,1752685874300,-437.944462,0.0002487,7]
[372569180,1752685874310,-151.0,0.0002487,7]
[372569181,1752685874319,-176.579178,0.0002487,7]
[372569182,1752685874329,-331.657132,0.0002487,7]
[372569183,1752685874339,-331.657132,0.0002487,7]
[372569184,1752685874349,-151.0,0.0002487,7]
[372569185,1752685874368,-151.0,0.0002487,7]
[372569186,1752685874383,-151.0,0.0002487,7]
[372569187,1752685874396,-238.705138,0.0002487,7]
[372569188,1752685874406,-238.705138,0.0002487,7]
[372569189,1752685874416,-360.079942,0.0002487,7]
[372569190,1752685874425,-360.079942,0.0002487,7]
[372569191,1752685874435,-463.488078,0.0002487,7]
[372569192,1752685874445,-463.488078,0.0002487,7]
[372569193,1752685874455,-151.0,0.0002487,7]
[372569194,1752685874465,-1350.503628,0.0002487,7]
[372569195,1752685874474,-160.05160155,0.00024877,2]
[372569196,1752685874484,-190.25001694,0.00024877,2]
[372569197,1752685874493,-193.7731654,0.00024877,2]
[372569198,1752685874503,-179.68057155,0.00024877,2]
[372569199,1752685874513,-150.64634875,0.0002488,2]
[372569200,1752685874522,-20786.63085648,0.000249,2]
[372569201,1752685874531,-151.0,0.000249,7]
[372569202,1752685874541,-151.0,0.000249,7]
[372569203,1752685874550,-151.0,0.000249,7]
[372569204,1752685874560,-222.729208,0.000249,7]
[372569205,1752685874569,-222.729208,0.000249,7]
[372569206,1752685874578,-151.0,0.000249,7]
[372569207,1752685874588,-151.0,0.000249,7]
[372569208,1752685874597,-172.687709,0.000249,7]
[372569209,1752685874606,-172.687709,0.000249,7]
[372569210,1752685874616,-151.0,0.000249,7]
[372569211,1752685874628,-151.0,0.000249,7]
[372569212,1752685874637,-225.888884,0.000249,7]
[372569213,1752685874647,-225.888884,0.000249,7]
[372569214,1752685874656,-151.0,0.000249,7]
[372569215,1752685874789,-151.0,0.000249,7]
[372569216,1752685874800,-238.706692,0.000249,7]
[372569217,1752685874810,-238.706692,0.000249,7]
[372569218,1752685874819,-151.0,0.000249,7]
[372569219,1752685874829,-151.0,0.000249,7]
[372569220,1752685874838,-210.739622,0.000249,7]
[372569221,1752685874848,-210.739622,0.000249,7]
[372569222,1752685874857,-217.177208,0.000249,7]
[372569223,1752685874867,-151.0,0.000249,7]
[372569224,1752685874878,-217.177208,0.000249,7]
[372569225,1752685874888,-151.0,0.000249,7]
[372569226,1752685874898,-151.0,0.000249,7]
[372569227,1752685874907,-437.944462,0.000249,7]
[372569228,1752685874917,-437.944462,0.000249,7]
[372569229,1752685874926,-151.0,0.000249,7]
[372569230,1752685874935,-331.657132,0.000249,7]
[372569231,1752685874944,-331.657132,0.000249,7]
[372569232,1752685874954,-151.0,0.000249,7]
[372569233,1752685874963,-151.0,0.000249,7]
[372569234,1752685874973,-151.0,0.000249,7]
[372569235,1752685874986,-238.705138,0.000249,7]
[372569236,1752685874997,-238.705138,0.000249,7]
[372569237,1752685875007,-360.079942,0.000249,7]
[372569238,1752685875016,-360.079942,0.000249,7]
[372569239,1752685875026,-463.488078,0.000249,7]
[372569240,1752685875035,-463.488078,0.000249,7]
[372569241,1752685875045,-151.0,0.000249,7]
[372569242,1752685875054,-568864.64929215,0.000249,2]
[372569250,1752686068733,202.69,0.00021959,120]
[372569255,1752686521304,1781.8602924,0.00017768,2]
[372569256,1752686621635,217.585855,0.00017766,2]
[372569257,1752686683699,7584.20594314,0.00017745,2]
[372569258,1752686683726,17315.79405686,0.00017745,2]
[372569262,1752686842137,-200.15050736,0.00018566,2]
[372569263,1752686842157,-1119.38981299,0.00018654,2]
[372569264,1752686842177,-159.47801445,0.00018666,2]
[372569265,1752686842198,-300.0,0.00018697,2]
[372569266,1752686842216,-300.0,0.00018698,2]
[372569267,1752686842236,-124.3756787,0.00018698,2]
[372569268,1752686844117,393.483627,0.00013699,2]
[372569270,1752686873326,14593.60373503,0.00018,2]
[372569271,1752686877375,242.08640295,0.00018,2]
[372569272,1752686877399,7697.11858111,0.00018,2]
[372569273,1752686877422,1553.78009796,0.00018,2]
[372569275,1752686917709,242.0799084,0.00017,2]
[372569276,1752686917733,38446.21990204,0.00017,2]
[372569277,1752686917758,21083.5649246,0.00017,2]
[372569278,1752686920578,18916.4350754,0.00018,2]
[372569279,1752686920603,15494.24550677,0.00018,2]
[372569284,1752686922943,12689.72825657,0.00018,2]
[372569347,1752687032073,-298.45051039,0.00018673,2]
[372569349,1752687032082,-164.30400386,0.00018673,2]
[372569351,1752687032092,-222.27,0.0001869,3]
[372569353,1752687032102,-136.19086555,0.0001869,3]
[372569641,1752687037743,-530.63913445,0.0001869,3]
[372569642,1752687037753,-486.67730189,0.00018695,2]
[372569643,1752687037766,-713.32269811,0.00018695,2]
[372569644,1752687037776,-38.64511762,0.00018696,2]
[372569645,1752687037857,-261.35488238,0.00018696,2]
[372569646,1752687037870,-300.0,0.00018696,2]
[372569647,1752687037879,-300.0,0.00018696,2]
[372569648,1752687037890,-300.0,0.00018696,2]
[372569649,1752687037899,-300.0,0.00018696,2]
[372569650,1752687037909,-292.16375305,0.00018696,2]
[372569651,1752687037919,-590.5,0.00018696,2]
[372569652,1752687037928,-165.02611541,0.00018696,2]
[372569653,1752687037938,-500.0,0.00018696,2]
[372569654,1752687037948,-500.0,0.00018696,2]
[372569655,1752687037957,-500.0,0.00018696,2]
[372569656,1752687037967,-500.0,0.00018696,2]
[372569658,1752687037976,-500.0,0.00018696,2]
[372569660,1752687037985,-500.0,0.00018696,2]
[372569662,1752687037994,-500.0,0.00018696,2]
[372569664,1752687038004,-500.0,0.00018696,2]
[372569666,1752687038013,-500.0,0.00018696,2]
[372569668,1752687038022,-500.0,0.00018696,2]
[372569669,1752687038031,-500.0,0.00018696,2]
[372569670,1752687038040,-500.0,0.00018696,2]
[372569671,1752687038049,-500.0,0.00018696,2]
[372569673,1752687038058,-500.0,0.00018696,2]
[372569675,1752687038067,-359.07751057,0.00018696,2]
[372569678,1752687038087,-140.92248943,0.00018696,2]
[372569679,1752687038096,-500.0,0.00018696,2]
[372569680,1752687038105,-500.0,0.00018696,2]